{"text_format":"3","workbook":"xlsx","n_sheets":1,"sheets":["Hoja1"],"not_rendered":{"images":1,"macros":1},"read":"whole","date_system":"1900"}

{"sheet":"Hoja1","index":0,"n_rows":26,"n_cols":12,"rows_kept":26,"merged":[[1,1,1,11],[3,1,3,2],[3,10,3,11]]}
[]
[null,"Cuenta Pública 2020\nRetenciones del Impuesto Sobre la Renta por Salarios, Honorarios y Arrendamiento"]
[{"$nulls":6},"(Cifras en Pesos)"]
[null,"Entidad Municipal: _________________ (1)",{"$nulls":8}," Al  31 de Diciembre de 2020"]
[]
[null,"Mes","ISR \nRetenido por Salarios (2)\n(A)","ISR \nRetenido por Honorarios (3)\n(B)","ISR \npor pago a cuenta de Terceros o Retenciones por Arrendamiento de Inmuebles (4)\n (D)","ISR \nRetenido por algún otro concepto (5)\n (D)","Actualizaciones y Recargos (6)\n(E)","Subsidio al empleo (7) \n(F)","ISR \npor pagar (8)\nG=(A+B+C+D+E-F)","Pagos realizados de acuerdo a expediente (9)\n(H)","Fecha de pago (10)","Remanente por pagar (11)\n E=(G-H)"]
[null,"Enero",{"$nulls":6},{"$f":"+C7+D7+F7+E7+G7-H7","v":{"v":0,"d":"0.0"}},null,null,{"$f":"I7-J7","v":{"v":0,"d":"0.0"}}]
[null,"Febrero",{"$nulls":6},{"v":0,"d":"0.0"},null,null,{"v":0,"d":"0.0"}]
[null,"Marzo",{"$nulls":6},{"v":0,"d":"0.0"},null,null,{"v":0,"d":"0.0"}]
[null,"Abril",{"$nulls":6},{"v":0,"d":"0.0"},null,null,{"v":0,"d":"0.0"}]
[null,"Mayo",{"$nulls":6},{"v":0,"d":"0.0"},null,null,{"v":0,"d":"0.0"}]
[null,"Junio",{"$nulls":6},{"v":0,"d":"0.0"},null,null,{"v":0,"d":"0.0"}]
[null,"Julio",{"$nulls":6},{"v":0,"d":"0.0"},null,null,{"v":0,"d":"0.0"}]
[null,"Agosto",{"$nulls":6},{"v":0,"d":"0.0"},null,null,{"v":0,"d":"0.0"}]
[null,"Septiembre",{"$nulls":6},{"v":0,"d":"0.0"},null,null,{"v":0,"d":"0.0"}]
[null,"Octubre",{"$nulls":6},{"v":0,"d":"0.0"},null,null,{"v":0,"d":"0.0"}]
[null,"Noviembre",{"$nulls":6},{"v":0,"d":"0.0"},null,null,{"v":0,"d":"0.0"}]
[null,"Diciembre",{"$nulls":6},{"v":0,"d":"0.0"},null,null,{"v":0,"d":"0.0"}]
[null,"TOTAL",{"$f":"SUM(C7:C18)","v":{"v":0,"d":"0.0"}},{"v":0,"d":"0.0"},{"v":0,"d":"0.0"},{"v":0,"d":"0.0"},{"v":0,"d":"0.0"},{"v":0,"d":"0.0"},{"v":0,"d":"0.0"},{"v":0,"d":"0.0"},null,{"$f":"SUM(L7:L18)","v":{"v":0,"d":"0.0"}}]
[]
[null,"Cuenta Contable (12)"]
[null,"Saldo de la Cuenta de pasivo (13)"]
[]
[null,"Nota 1: Agregar expediente digitalizado  de los pagos realizados en el banco y que incluya poliza de egresos con soporte documental y las declaraciones del ejercicio completo sin omitir algún mes."]
[]
[null,null,"\"Bajo protesta de decir verdad declaramos que los formatos y sus notas, son razonablemente correctos y son responsabilidad del emisor\""]